[Event "Early-Titled-Tuesday-Blitz-April-16-2024"]
[Site "Chess.com"]
[Date "2024.04.16"]
[Round "1"]
[White "bobo_panda"]
[Black "Hasangatin_Ramil"]
[Result "0-1"]
[WhiteElo "2349"]
[BlackElo "2651"]
[TimeControl "180+1"]
[EndTime "8:08:52 PDT"]
[Termination "Hasangatin_Ramil won by checkmate"]

1. e4 {[%clk 0:03:00.9]} 1... d5 {[%clk 0:02:54.4]} 2. exd5 {[%clk 0:03:00.3]}
2... Qxd5 {[%clk 0:02:55.3]} 3. Nf3 {[%clk 0:03:00.1]} 3... Bg4 {[%clk
0:02:54.6]} 4. Be2 {[%clk 0:03:00.5]} 4... Nc6 {[%clk 0:02:55.1]} 5. d4 {[%clk
0:03:00.7]} 5... O-O-O {[%clk 0:02:55.6]} 6. Be3 {[%clk 0:03:00.9]} 6... e5
{[%clk 0:02:55.9]} 7. c4 {[%clk 0:03:01.2]} 7... Qa5+ {[%clk 0:02:54.2]} 8. Bd2
{[%clk 0:03:01.5]} 8... Bb4 {[%clk 0:02:54.2]} 9. d5 {[%clk 0:03:01.1]} 9...
Bxf3 {[%clk 0:02:52.8]} 10. Bxf3 {[%clk 0:02:59.8]} 10... Nd4 {[%clk 0:02:53.1]}
11. Nc3 {[%clk 0:02:59.3]} 11... Qa6 {[%clk 0:02:51.5]} 12. Be2 {[%clk
0:02:58.1]} 12... Qg6 {[%clk 0:02:50.9]} 13. O-O {[%clk 0:02:51.4]} 13... Qc2
{[%clk 0:02:43.2]} 14. Qxc2 {[%clk 0:02:36.4]} 14... Nxc2 {[%clk 0:02:43.1]} 15.
Rac1 {[%clk 0:02:35.3]} 15... Nd4 {[%clk 0:02:43.2]} 16. Bd3 {[%clk 0:02:35.2]}
16... Nf6 {[%clk 0:02:16.7]} 17. Rfe1 {[%clk 0:02:30.3]} 17... Rhe8 {[%clk
0:02:07.8]} 18. a3 {[%clk 0:02:20.6]} 18... Nb3 {[%clk 0:01:56.2]} 19. axb4
{[%clk 0:02:16]} 19... Nxd2 {[%clk 0:01:56.3]} 20. Ra1 {[%clk 0:01:58.9]} 20...
Kb8 {[%clk 0:01:53.8]} 21. Ra3 {[%clk 0:01:55.4]} 21... e4 {[%clk 0:01:53.7]}
22. Be2 {[%clk 0:01:54.9]} 22... e3 {[%clk 0:01:52.8]} 23. f3 {[%clk 0:01:55.2]}
23... a6 {[%clk 0:01:33.5]} 24. Nd1 {[%clk 0:01:51.7]} 24... Re7 {[%clk
0:01:23.3]} 25. Rxe3 {[%clk 0:01:48.1]} 25... Rde8 {[%clk 0:01:20.3]} 26. Kf2
{[%clk 0:01:45.3]} 26... b5 {[%clk 0:01:00.5]} 27. b3 {[%clk 0:01:19]} 27...
Rxe3 {[%clk 0:00:59.1]} 28. Nxe3 {[%clk 0:01:18.2]} 28... Nxb3 {[%clk
0:00:59.6]} 29. cxb5 {[%clk 0:01:18.1]} 29... axb5 {[%clk 0:00:53.2]} 30. Bxb5
{[%clk 0:01:19]} 30... Re5 {[%clk 0:00:53.2]} 31. Bc4 {[%clk 0:01:05.5]} 31...
Nd4 {[%clk 0:00:48.6]} 32. Rd1 {[%clk 0:01:00.2]} 32... Nf5 {[%clk 0:00:48.5]}
33. Nxf5 {[%clk 0:00:49]} 33... Rxf5 {[%clk 0:00:49.4]} 34. Ke3 {[%clk
0:00:49.1]} 34... Rh5 {[%clk 0:00:43.1]} 35. h3 {[%clk 0:00:46.8]} 35... Ne8
{[%clk 0:00:41.3]} 36. Kd4 {[%clk 0:00:44.5]} 36... Nd6 {[%clk 0:00:39.2]} 37.
Bd3 {[%clk 0:00:44.6]} 37... Rh4+ {[%clk 0:00:39]} 38. Kc5 {[%clk 0:00:28]}
38... Nb7+ {[%clk 0:00:37.1]} 39. Kb5 {[%clk 0:00:28.4]} 39... Nd6+ {[%clk
0:00:37.4]} 40. Ka4 {[%clk 0:00:28.9]} 40... Kb7 {[%clk 0:00:27.5]} 41. Bb5
{[%clk 0:00:26.4]} 41... Rh6 {[%clk 0:00:17.9]} 42. Rc1 {[%clk 0:00:23.4]} 42...
Rg6 {[%clk 0:00:16.5]} 43. g4 {[%clk 0:00:22.8]} 43... Rf6 {[%clk 0:00:16.2]}
44. Rc3 {[%clk 0:00:22.3]} 44... Rf4 {[%clk 0:00:16.2]} 45. Bc6+ {[%clk
0:00:20.1]} 45... Kb6 {[%clk 0:00:16.5]} 46. Re3 {[%clk 0:00:21]} 46... Rd4
{[%clk 0:00:09.8]} 47. Re7 {[%clk 0:00:20.4]} 47... Rd3 {[%clk 0:00:09.4]} 48.
b5 {[%clk 0:00:09.5]} 48... Rxf3 {[%clk 0:00:07.3]} 49. Kb4 {[%clk 0:00:08.9]}
49... Rf4+ {[%clk 0:00:07.5]} 50. Kc3 {[%clk 0:00:08.5]} 50... h6 {[%clk
0:00:07.8]} 51. Re8 {[%clk 0:00:08.1]} 51... Nxe8 {[%clk 0:00:07.5]} 52. Bxe8
{[%clk 0:00:08.4]} 52... f6 {[%clk 0:00:07.2]} 53. Bc6 {[%clk 0:00:06.7]} 53...
Kc5 {[%clk 0:00:07.4]} 54. Kd2 {[%clk 0:00:06]} 54... Rf2+ {[%clk 0:00:07]} 55.
Ke1 {[%clk 0:00:06.2]} 55... Rh2 {[%clk 0:00:07.3]} 56. d6 {[%clk 0:00:05]}
56... Kxd6 {[%clk 0:00:06.9]} 57. Kf1 {[%clk 0:00:04.8]} 57... Rxh3 {[%clk
0:00:06.6]} 58. Kg2 {[%clk 0:00:05.7]} 58... Rc3 {[%clk 0:00:06.2]} 59. Kf2
{[%clk 0:00:06.6]} 59... Rxc6 {[%clk 0:00:06.1]} 60. bxc6 {[%clk 0:00:07.1]}
60... Kxc6 {[%clk 0:00:07]} 61. Kf3 {[%clk 0:00:07.6]} 61... Kd6 {[%clk
0:00:07.3]} 62. Kf4 {[%clk 0:00:08.5]} 62... Ke6 {[%clk 0:00:08.2]} 63. Ke4
{[%clk 0:00:08.9]} 63... g6 {[%clk 0:00:08.3]} 64. Kd4 {[%clk 0:00:08]} 64... f5
{[%clk 0:00:09.2]} 65. g5 {[%clk 0:00:08.1]} 65... hxg5 {[%clk 0:00:08.8]} 66.
Ke3 {[%clk 0:00:08.4]} 66... Ke5 {[%clk 0:00:08.4]} 67. Kd3 {[%clk 0:00:09.3]}
67... g4 {[%clk 0:00:08.9]} 68. Ke3 {[%clk 0:00:10.2]} 68... f4+ {[%clk
0:00:09.8]} 69. Kd3 {[%clk 0:00:10.5]} 69... g5 {[%clk 0:00:10.7]} 70. Kd2
{[%clk 0:00:10.7]} 70... c6 {[%clk 0:00:11.6]} 71. Ke2 {[%clk 0:00:11.6]} 71...
c5 {[%clk 0:00:12.5]} 72. Kd2 {[%clk 0:00:12.3]} 72... c4 {[%clk 0:00:12.7]} 73.
Ke2 {[%clk 0:00:13.1]} 73... Kd5 {[%clk 0:00:13.5]} 74. Kd2 {[%clk 0:00:13.5]}
74... Kd4 {[%clk 0:00:14.1]} 75. Kc2 {[%clk 0:00:13.7]} 75... c3 {[%clk
0:00:14.6]} 76. Kd1 {[%clk 0:00:13.6]} 76... Kd3 {[%clk 0:00:15.5]} 77. Ke1
{[%clk 0:00:13.5]} 77... c2 {[%clk 0:00:16]} 78. Kf2 {[%clk 0:00:13.9]} 78...
c1=Q {[%clk 0:00:16.5]} 79. Kg2 {[%clk 0:00:13.9]} 79... Qd2+ {[%clk 0:00:16.6]}
80. Kh1 {[%clk 0:00:13.5]} 80... g3 {[%clk 0:00:16.8]} 81. Kg1 {[%clk
0:00:13.7]} 81... f3 {[%clk 0:00:17]} 82. Kh1 {[%clk 0:00:14.1]} 82... Qd1#
{[%clk 0:00:17.4]} 0-1

[Event "Early-Titled-Tuesday-Blitz-April-16-2024"]
[Site "Chess.com"]
[Date "2024.04.16"]
[Round "1"]
[White "Kotlyar_K"]
[Black "Artemiki"]
[Result "1/2-1/2"]
[WhiteElo "2700"]
[BlackElo "2423"]
[TimeControl "180+1"]
[EndTime "8:09:11 PDT"]
[Termination "Game drawn by repetition"]

1. d4 {[%clk 0:02:59.2]} 1... Nf6 {[%clk 0:03:00.3]} 2. c4 {[%clk 0:02:58.5]}
2... c5 {[%clk 0:03:00.8]} 3. d5 {[%clk 0:02:57.1]} 3... e6 {[%clk 0:02:57.1]}
4. Nc3 {[%clk 0:02:57.3]} 4... exd5 {[%clk 0:02:54.2]} 5. cxd5 {[%clk
0:02:58.2]} 5... d6 {[%clk 0:02:54.6]} 6. Nf3 {[%clk 0:02:15.1]} 6... g6 {[%clk
0:02:54.3]} 7. Nd2 {[%clk 0:02:14.6]} 7... Bg7 {[%clk 0:02:54.5]} 8. e4 {[%clk
0:02:14.8]} 8... O-O {[%clk 0:02:54.9]} 9. Be2 {[%clk 0:02:14.8]} 9... Re8
{[%clk 0:02:55.4]} 10. O-O {[%clk 0:02:12]} 10... Nbd7 {[%clk 0:02:56]} 11. a4
{[%clk 0:02:08.3]} 11... Ne5 {[%clk 0:02:56.3]} 12. Ra3 {[%clk 0:02:01.1]} 12...
g5 {[%clk 0:02:54.9]} 13. Qc2 {[%clk 0:01:52.3]} 13... h6 {[%clk 0:02:49.3]} 14.
a5 {[%clk 0:01:50.1]} 14... Ng6 {[%clk 0:02:32.6]} 15. Nc4 {[%clk 0:01:48.2]}
15... Ng4 {[%clk 0:02:19.7]} 16. Nb5 {[%clk 0:01:43.4]} 16... Bf8 {[%clk
0:02:12]} 17. Rg3 {[%clk 0:01:21.2]} 17... N4e5 {[%clk 0:01:27.4]} 18. Nxe5
{[%clk 0:01:09.4]} 18... dxe5 {[%clk 0:01:28.3]} 19. d6 {[%clk 0:01:02.4]} 19...
Be6 {[%clk 0:01:00.5]} 20. Nc7 {[%clk 0:00:58.9]} 20... Qxd6 {[%clk 0:00:56.7]}
21. Nxa8 {[%clk 0:00:58.1]} 21... Rxa8 {[%clk 0:00:57.4]} 22. Rd1 {[%clk
0:00:54.9]} 22... Qc7 {[%clk 0:00:57.3]} 23. Bc4 {[%clk 0:00:52.4]} 23... Bxc4
{[%clk 0:00:54.7]} 24. Qxc4 {[%clk 0:00:53.1]} 24... Qxa5 {[%clk 0:00:54.9]} 25.
h4 {[%clk 0:00:50.5]} 25... Rd8 {[%clk 0:00:50.1]} 26. Rxd8 {[%clk 0:00:45.8]}
26... Qxd8 {[%clk 0:00:45.1]} 27. Rd3 {[%clk 0:00:18.2]} 27... Qe7 {[%clk
0:00:33.3]} 28. h5 {[%clk 0:00:18.1]} 28... Nf4 {[%clk 0:00:31.7]} 29. Bxf4
{[%clk 0:00:18.7]} 29... exf4 {[%clk 0:00:32.2]} 30. Rd5 {[%clk 0:00:18.3]}
30... Bg7 {[%clk 0:00:31]} 31. Rxc5 {[%clk 0:00:15.8]} 31... Be5 {[%clk
0:00:14.5]} 32. Qd5 {[%clk 0:00:12.1]} 32... Bxb2 {[%clk 0:00:14.2]} 33. Rb5
{[%clk 0:00:11.8]} 33... Qf6 {[%clk 0:00:04.2]} 34. Rxb7 {[%clk 0:00:09.1]}
34... Bd4 {[%clk 0:00:04.2]} 35. Rb8+ {[%clk 0:00:08.1]} 35... Kg7 {[%clk
0:00:04.1]} 36. Rd8 {[%clk 0:00:08.8]} 36... Bb6 {[%clk 0:00:03]} 37. Rd7 {[%clk
0:00:06.8]} 37... Qa1+ {[%clk 0:00:02.2]} 38. Kh2 {[%clk 0:00:06.6]} 38... Qf6
{[%clk 0:00:03.1]} 39. e5 {[%clk 0:00:06.4]} 39... Qf5 {[%clk 0:00:03.3]} 40.
Qd6 {[%clk 0:00:04.5]} 40... g4 {[%clk 0:00:02.7]} 41. Qf6+ {[%clk 0:00:01.7]}
41... Qxf6 {[%clk 0:00:02.7]} 42. exf6+ {[%clk 0:00:02.6]} 42... Kxf6 {[%clk
0:00:03.6]} 43. Rd5 {[%clk 0:00:03.1]} 43... Ke6 {[%clk 0:00:03.3]} 44. Rb5
{[%clk 0:00:02.8]} 44... Bxf2 {[%clk 0:00:03.5]} 45. Kh1 {[%clk 0:00:03.3]}
45... a6 {[%clk 0:00:02.7]} 46. Rb7 {[%clk 0:00:03.3]} 46... Kf6 {[%clk
0:00:02.8]} 47. Rb2 {[%clk 0:00:03.7]} 47... Be3 {[%clk 0:00:02.5]} 48. Ra2
{[%clk 0:00:03.9]} 48... Kg5 {[%clk 0:00:02.8]} 49. Rxa6 {[%clk 0:00:04.7]}
49... Kxh5 {[%clk 0:00:03.3]} 50. Rf6 {[%clk 0:00:04.5]} 50... Kg5 {[%clk
0:00:03.9]} 51. Rxf7 {[%clk 0:00:04.8]} 51... h5 {[%clk 0:00:04.8]} 52. Rf8
{[%clk 0:00:04.6]} 52... h4 {[%clk 0:00:05.2]} 53. Kh2 {[%clk 0:00:04.5]} 53...
Bf2 {[%clk 0:00:04.6]} 54. Kh1 {[%clk 0:00:04.5]} 54... Be3 {[%clk 0:00:04.7]}
55. Rg8+ {[%clk 0:00:05.2]} 55... Kf5 {[%clk 0:00:04.8]} 56. Rh8 {[%clk
0:00:06.1]} 56... Bf2 {[%clk 0:00:04.9]} 57. Kh2 {[%clk 0:00:05.7]} 57... Kg5
{[%clk 0:00:04.9]} 58. Rg8+ {[%clk 0:00:05.8]} 58... Kf5 {[%clk 0:00:04.9]} 59.
Kh1 {[%clk 0:00:06]} 59... Be3 {[%clk 0:00:04]} 60. Rh8 {[%clk 0:00:05.7]} 60...
Bf2 {[%clk 0:00:04.6]} 61. Rc8 {[%clk 0:00:06.6]} 61... Kg5 {[%clk 0:00:03.1]}
62. Rb8 {[%clk 0:00:06.8]} 62... Kg6 {[%clk 0:00:03.2]} 63. Rb5 {[%clk
0:00:07.6]} 63... Be3 {[%clk 0:00:03.1]} 64. Kh2 {[%clk 0:00:07.3]} 64... Bf2
{[%clk 0:00:03.4]} 65. Kh1 {[%clk 0:00:06.9]} 65... Be3 {[%clk 0:00:03.9]} 66.
Rd5 {[%clk 0:00:07]} 66... Bf2 {[%clk 0:00:04.3]} 67. Re5 {[%clk 0:00:06.2]}
67... Be3 {[%clk 0:00:04.4]} 68. Re4 {[%clk 0:00:06.3]} 68... Kf5 {[%clk
0:00:04.6]} 69. Ra4 {[%clk 0:00:06.4]} 69... Bf2 {[%clk 0:00:03.7]} 70. Rc4
{[%clk 0:00:05.4]} 70... Be3 {[%clk 0:00:04]} 71. Ra4 {[%clk 0:00:05.7]} 71...
Bf2 {[%clk 0:00:04.4]} 72. Rc4 {[%clk 0:00:06]} 72... Be3 {[%clk 0:00:04.9]} 73.
Ra4 {[%clk 0:00:06.3]} 1/2-1/2

[Event "Early-Titled-Tuesday-Blitz-April-16-2024"]
[Site "Chess.com"]
[Date "2024.04.16"]
[Round "1"]
[White "rhwr"]
[Black "chess123456s"]
[Result "0-1"]
[WhiteElo "2259"]
[BlackElo "2601"]
[TimeControl "180+1"]
[EndTime "8:09:30 PDT"]
[Termination "chess123456s won on time"]

1. e4 {[%clk 0:02:55]} 1... c5 {[%clk 0:02:57.1]} 2. Be2 {[%clk 0:02:54]} 2...
Nc6 {[%clk 0:02:55]} 3. f4 {[%clk 0:02:54.3]} 3... g6 {[%clk 0:02:52.5]} 4. Nf3
{[%clk 0:02:54.4]} 4... Bg7 {[%clk 0:02:53.2]} 5. c3 {[%clk 0:02:51.9]} 5... e6
{[%clk 0:02:53.4]} 6. O-O {[%clk 0:02:51.9]} 6... Nge7 {[%clk 0:02:53.1]} 7. d3
{[%clk 0:02:46.3]} 7... d5 {[%clk 0:02:53.4]} 8. e5 {[%clk 0:02:45.8]} 8... O-O
{[%clk 0:02:53.7]} 9. g4 {[%clk 0:02:43.6]} 9... d4 {[%clk 0:02:52.6]} 10. c4
{[%clk 0:02:43.1]} 10... b6 {[%clk 0:02:52.8]} 11. Nbd2 {[%clk 0:02:42.4]} 11...
Bb7 {[%clk 0:02:50.7]} 12. Ne4 {[%clk 0:02:42.8]} 12... Qc7 {[%clk 0:02:47.8]}
13. a3 {[%clk 0:02:40.5]} 13... a5 {[%clk 0:02:42.3]} 14. Rf2 {[%clk 0:02:36.8]}
14... a4 {[%clk 0:02:38.6]} 15. Qf1 {[%clk 0:02:30.7]} 15... Na5 {[%clk
0:02:38.4]} 16. Nf6+ {[%clk 0:02:13.8]} 16... Kh8 {[%clk 0:02:32.8]} 17. Qh3
{[%clk 0:02:13]} 17... h6 {[%clk 0:02:32.7]} 18. f5 {[%clk 0:02:01.7]} 18... h5
{[%clk 0:01:50.6]} 19. gxh5 {[%clk 0:01:46.3]} 19... gxf5 {[%clk 0:01:44.5]} 20.
h6 {[%clk 0:01:31.2]} 20... Bxf6 {[%clk 0:01:43.6]} 21. exf6 {[%clk 0:01:32.1]}
21... Ng6 {[%clk 0:01:42.9]} 22. h7 {[%clk 0:01:28]} 22... Qd8 {[%clk
0:00:53.3]} 23. Bg5 {[%clk 0:01:21.4]} 23... Rg8 {[%clk 0:00:40.1]} 24. Qh6
{[%clk 0:00:49.2]} 24... Qf8 {[%clk 0:00:36.5]} 25. hxg8=Q+ {[%clk 0:00:47.5]}
25... Kxg8 {[%clk 0:00:37.4]} 26. Qxf8+ {[%clk 0:00:46.9]} 26... Kxf8 {[%clk
0:00:38.3]} 27. h4 {[%clk 0:00:40]} 27... Ke8 {[%clk 0:00:37.5]} 28. h5 {[%clk
0:00:40]} 28... Nf8 {[%clk 0:00:38]} 29. h6 {[%clk 0:00:38.8]} 29... Nh7 {[%clk
0:00:38]} 30. Bh4 {[%clk 0:00:37.2]} 30... Nc6 {[%clk 0:00:37.7]} 31. Re1 {[%clk
0:00:36.7]} 31... Kd7 {[%clk 0:00:37.9]} 32. Bf1 {[%clk 0:00:35.5]} 32... Re8
{[%clk 0:00:31.9]} 33. Ne5+ {[%clk 0:00:32.5]} 33... Nxe5 {[%clk 0:00:31.7]} 34.
Rxe5 {[%clk 0:00:32.8]} 34... Kd6 {[%clk 0:00:32.2]} 35. Rfxf5 {[%clk
0:00:30.7]} 35... Rg8+ {[%clk 0:00:31.7]} 36. Rg5 {[%clk 0:00:30.5]} 36... Nxg5
{[%clk 0:00:30.3]} 37. Rxg5 {[%clk 0:00:30.4]} 37... Rh8 {[%clk 0:00:30.9]} 38.
Bg3+ {[%clk 0:00:28.4]} 38... Kd7 {[%clk 0:00:30.9]} 39. Rh5 {[%clk 0:00:29]}
39... Bf3 {[%clk 0:00:30.4]} 40. Rh3 {[%clk 0:00:28.4]} 40... Bg4 {[%clk
0:00:30.5]} 41. Rh4 {[%clk 0:00:28.5]} 41... Bf5 {[%clk 0:00:31.2]} 42. Bf4
{[%clk 0:00:28.9]} 42... Rg8+ {[%clk 0:00:30]} 43. Kf2 {[%clk 0:00:29.2]} 43...
Bh7 {[%clk 0:00:29.5]} 44. Kf3 {[%clk 0:00:29.3]} 44... Re8 {[%clk 0:00:29.3]}
45. Bg2 {[%clk 0:00:29.4]} 45... e5 {[%clk 0:00:29.6]} 46. Bd2 {[%clk
0:00:28.6]} 46... Bxd3 {[%clk 0:00:29]} 47. Bh3+ {[%clk 0:00:26.8]} 47... Kd6
{[%clk 0:00:28.2]} 48. h7 {[%clk 0:00:25.6]} 48... Rh8 {[%clk 0:00:25.2]} 49.
Bg4 {[%clk 0:00:21.2]} 49... Rxh7 {[%clk 0:00:24.4]} 50. Rxh7 {[%clk 0:00:21]}
50... Bxh7 {[%clk 0:00:25.3]} 51. Ke2 {[%clk 0:00:14.4]} 51... Bc2 {[%clk
0:00:23.2]} 52. Bh6 {[%clk 0:00:10.1]} 52... Bg6 {[%clk 0:00:20.7]} 53. Kd2
{[%clk 0:00:11]} 53... e4 {[%clk 0:00:20.8]} 54. Bf4+ {[%clk 0:00:10.4]} 54...
Kc6 {[%clk 0:00:21.4]} 55. Bd1 {[%clk 0:00:09.1]} 55... e3+ {[%clk 0:00:21.7]}
56. Ke1 {[%clk 0:00:09]} 56... b5 {[%clk 0:00:19.6]} 57. Be2 {[%clk 0:00:07]}
57... b4 {[%clk 0:00:19.5]} 58. Bf3+ {[%clk 0:00:06.5]} 58... Kb6 {[%clk
0:00:19.8]} 59. Kd1 {[%clk 0:00:06.3]} 59... bxa3 {[%clk 0:00:16.9]} 60. bxa3
{[%clk 0:00:06.4]} 60... Bd3 {[%clk 0:00:16.9]} 61. Bd5 {[%clk 0:00:06.4]} 61...
Bg6 {[%clk 0:00:17.2]} 62. Ke2 {[%clk 0:00:06]} 62... Bh5+ {[%clk 0:00:16.2]}
63. Kd3 {[%clk 0:00:05.9]} 63... Bg6+ {[%clk 0:00:17]} 64. Be4 {[%clk
0:00:04.9]} 64... Bh5 {[%clk 0:00:17.1]} 65. Bg3 {[%clk 0:00:04.9]} 65... Ka6
{[%clk 0:00:16.5]} 66. Be1 {[%clk 0:00:04.8]} 66... Ka7 {[%clk 0:00:16.7]} 67.
Ba5 {[%clk 0:00:03.4]} 67... Kb8 {[%clk 0:00:16.7]} 68. Bb6 {[%clk 0:00:03.6]}
68... e2 {[%clk 0:00:17]} 69. Ba5 {[%clk 0:00:03]} 69... Kc8 {[%clk 0:00:14.6]}
70. Kd2 {[%clk 0:00:03.3]} 70... Kd7 {[%clk 0:00:14.1]} 71. Bd3 {[%clk
0:00:03.1]} 71... Ke6 {[%clk 0:00:13.5]} 72. Bd8 {[%clk 0:00:02.8]} 72... Kd7
{[%clk 0:00:12.3]} 73. Be7 {[%clk 0:00:02.6]} 73... Kc6 {[%clk 0:00:13]} 74.
Bxe2 {[%clk 0:00:03]} 74... Bg6 {[%clk 0:00:13.7]} 75. Bd3 {[%clk 0:00:02.8]}
75... Bh5 {[%clk 0:00:14.5]} 76. Bf8 {[%clk 0:00:02.5]} 76... Bg4 {[%clk
0:00:14.6]} 77. Be7 {[%clk 0:00:02.8]} 77... Be6 {[%clk 0:00:14.4]} 78. Ke2
{[%clk 0:00:02.3]} 78... Bg4+ {[%clk 0:00:14.7]} 79. Kf2 {[%clk 0:00:02.5]}
79... Kb6 {[%clk 0:00:15.6]} 80. Kg3 {[%clk 0:00:02.9]} 80... Be6 {[%clk
0:00:14.6]} 81. Kf4 {[%clk 0:00:03.1]} 81... Kc6 {[%clk 0:00:15]} 82. Ke5 {[%clk
0:00:03.6]} 82... Bg4 {[%clk 0:00:15.3]} 83. Bc2 {[%clk 0:00:03.2]} 83... Be2
{[%clk 0:00:15.5]} 84. Bxa4+ {[%clk 0:00:03.5]} 84... Kb6 {[%clk 0:00:15.8]} 85.
Kd5 {[%clk 0:00:01.9]} 85... Bf3+ {[%clk 0:00:14.3]} 86. Ke5 {[%clk 0:00:01.3]}
86... d3 {[%clk 0:00:14.9]} 0-1

[Event "Early-Titled-Tuesday-Blitz-April-16-2024"]
[Site "Chess.com"]
[Date "2024.04.16"]
[Round "2"]
[White "Laico"]
[Black "HighLawView"]
[Result "1-0"]
[WhiteElo "2448"]
[BlackElo "2102"]
[TimeControl "180+1"]
[EndTime "8:11:49 PDT"]
[Termination "Laico won by resignation"]

1. e4 {[%clk 0:02:55.7]} 1... e5 {[%clk 0:02:59.6]} 2. Nc3 {[%clk 0:02:55.6]}
2... Nf6 {[%clk 0:02:57.4]} 3. f4 {[%clk 0:02:52.4]} 3... d5 {[%clk 0:02:56.4]}
4. fxe5 {[%clk 0:02:52.9]} 4... Nxe4 {[%clk 0:02:55.6]} 5. Qf3 {[%clk
0:02:53.6]} 5... Bc5 {[%clk 0:02:32.3]} 6. Nxe4 {[%clk 0:02:40.1]} 6... dxe4
{[%clk 0:02:30.3]} 7. Qxe4 {[%clk 0:02:41]} 7... O-O {[%clk 0:02:28.4]} 8. Nf3
{[%clk 0:02:41.3]} 8... f5 {[%clk 0:02:22.9]} 9. Qc4+ {[%clk 0:02:39.8]} 9...
Kh8 {[%clk 0:02:17.5]} 10. Qxc5 {[%clk 0:02:40]} 10... Nc6 {[%clk 0:02:17.2]}
11. Bb5 {[%clk 0:02:38.7]} 1-0

[Event "Early-Titled-Tuesday-Blitz-April-16-2024"]
[Site "Chess.com"]
[Date "2024.04.16"]
[Round "2"]
[White "AlexanderKing"]
[Black "ProtectiveCarrot"]
[Result "1-0"]
[WhiteElo "2591"]
[BlackElo "2284"]
[TimeControl "180+1"]
[EndTime "8:12:47 PDT"]
[Termination "AlexanderKing won by checkmate"]

1. c4 {[%clk 0:03:00.9]} 1... e6 {[%clk 0:02:59]} 2. g3 {[%clk 0:03:01.3]} 2...
d5 {[%clk 0:02:58.5]} 3. Bg2 {[%clk 0:03:01.5]} 3... Nf6 {[%clk 0:02:59.2]} 4.
Nf3 {[%clk 0:03:01.7]} 4... Be7 {[%clk 0:02:57.6]} 5. O-O {[%clk 0:03:01.4]}
5... O-O {[%clk 0:02:58.3]} 6. d4 {[%clk 0:03:01.6]} 6... dxc4 {[%clk
0:02:58.4]} 7. Qc2 {[%clk 0:03:00.6]} 7... b5 {[%clk 0:02:58.4]} 8. a4 {[%clk
0:02:51.9]} 8... b4 {[%clk 0:02:58.1]} 9. Nfd2 {[%clk 0:02:43.6]} 9... c6 {[%clk
0:02:56.4]} 10. Nxc4 {[%clk 0:02:42.1]} 10... Qxd4 {[%clk 0:02:54.8]} 11. Be3
{[%clk 0:02:37.1]} 11... Qd8 {[%clk 0:02:53.3]} 12. Rd1 {[%clk 0:02:36.5]} 12...
Nd5 {[%clk 0:02:53.6]} 13. Nbd2 {[%clk 0:02:26.4]} 13... Nxe3 {[%clk 0:02:46.6]}
14. Nxe3 {[%clk 0:02:27.3]} 14... Qc7 {[%clk 0:02:37.3]} 15. Nb3 {[%clk
0:02:25.7]} 15... Bb7 {[%clk 0:02:31.5]} 16. Rac1 {[%clk 0:02:25.7]} 16... a5
{[%clk 0:02:23]} 17. Nc5 {[%clk 0:02:22.3]} 17... Rd8 {[%clk 0:02:07.9]} 18.
Rxd8+ {[%clk 0:02:17.8]} 18... Bxd8 {[%clk 0:02:06.7]} 19. Nxb7 {[%clk
0:02:12.5]} 19... Qxb7 {[%clk 0:02:07.6]} 20. Bxc6 {[%clk 0:02:13]} 20... Nxc6
{[%clk 0:02:06.6]} 21. Qxc6 {[%clk 0:02:13.9]} 21... Qa7 {[%clk 0:01:56.6]} 22.
Qe8# {[%clk 0:02:13.5]} 1-0

[Event "Early-Titled-Tuesday-Blitz-April-16-2024"]
[Site "Chess.com"]
[Date "2024.04.16"]
[Round "2"]
[White "dropstoneDP"]
[Black "albi1999"]
[Result "1/2-1/2"]
[WhiteElo "3065"]
[BlackElo "2645"]
[TimeControl "180+1"]
[EndTime "8:13:00 PDT"]
[Termination "Game drawn by repetition"]

1. e4 {[%clk 0:03:00.9]} 1... e5 {[%clk 0:02:52.2]} 2. Nf3 {[%clk 0:03:00.5]}
2... Nc6 {[%clk 0:02:52.4]} 3. Bc4 {[%clk 0:03:00.9]} 3... Bc5 {[%clk 0:02:51]}
4. d3 {[%clk 0:03:00.8]} 4... Nf6 {[%clk 0:02:49.7]} 5. a4 {[%clk 0:03:00.3]}
5... h6 {[%clk 0:02:47.3]} 6. Be3 {[%clk 0:02:59.3]} 6... Bxe3 {[%clk
0:02:46.6]} 7. fxe3 {[%clk 0:03:00.2]} 7... a5 {[%clk 0:02:44.8]} 8. Nc3 {[%clk
0:02:59.8]} 8... d6 {[%clk 0:02:44.8]} 9. Qe2 {[%clk 0:02:56.7]} 9... Be6 {[%clk
0:02:44.6]} 10. Bxe6 {[%clk 0:02:55.2]} 10... fxe6 {[%clk 0:02:45.5]} 11. O-O-O
{[%clk 0:02:55.4]} 11... Nb4 {[%clk 0:02:40.8]} 12. d4 {[%clk 0:02:54.2]} 12...
exd4 {[%clk 0:02:40.3]} 13. exd4 {[%clk 0:02:55.1]} 13... O-O {[%clk 0:02:38.7]}
14. Kb1 {[%clk 0:02:51.2]} 14... Qd7 {[%clk 0:02:33.5]} 15. Rhe1 {[%clk
0:02:50.6]} 15... Rae8 {[%clk 0:02:30.6]} 16. Qb5 {[%clk 0:02:44.3]} 16... b6
{[%clk 0:02:26.5]} 17. Qxd7 {[%clk 0:02:41.8]} 17... Nxd7 {[%clk 0:02:26.5]} 18.
Nb5 {[%clk 0:02:42.7]} 18... Na6 {[%clk 0:02:21.3]} 19. c3 {[%clk 0:02:38.2]}
19... e5 {[%clk 0:02:17.5]} 20. Re3 {[%clk 0:02:13.7]} 20... Rf4 {[%clk
0:02:15.2]} 21. Rde1 {[%clk 0:02:05.3]} 21... Rf6 {[%clk 0:02:04.9]} 22. Rd1
{[%clk 0:02:01.6]} 22... Rf4 {[%clk 0:02:01.7]} 23. Rde1 {[%clk 0:02:02]} 23...
Rf6 {[%clk 0:02:01.4]} 24. Rd1 {[%clk 0:02:02.4]} 24... Rf4 {[%clk 0:02:01.5]}
1/2-1/2

[Event "Early-Titled-Tuesday-Blitz-April-16-2024"]
[Site "Chess.com"]
[Date "2024.04.16"]
[Round "2"]
[White "mishanick"]
[Black "ansko1999"]
[Result "1-0"]
[WhiteElo "3067"]
[BlackElo "2632"]
[TimeControl "180+1"]
[EndTime "8:13:02 PDT"]
[Termination "mishanick won by resignation"]

1. d4 {[%clk 0:03:00.9]} 1... d5 {[%clk 0:02:59.1]} 2. c4 {[%clk 0:03:00.8]}
2... c6 {[%clk 0:02:58.6]} 3. Nc3 {[%clk 0:03:00.9]} 3... Nf6 {[%clk 0:02:58]}
4. e3 {[%clk 0:03:01]} 4... e6 {[%clk 0:02:50.5]} 5. Bd3 {[%clk 0:02:59.8]} 5...
Bd6 {[%clk 0:02:46.9]} 6. Nge2 {[%clk 0:03:00.2]} 6... Nbd7 {[%clk 0:02:42.5]}
7. f3 {[%clk 0:03:00.4]} 7... O-O {[%clk 0:02:39.7]} 8. O-O {[%clk 0:02:56.2]}
8... e5 {[%clk 0:02:35.3]} 9. cxd5 {[%clk 0:02:55.2]} 9... cxd5 {[%clk
0:02:36.2]} 10. Bc2 {[%clk 0:02:54.9]} 10... exd4 {[%clk 0:02:32.3]} 11. exd4
{[%clk 0:02:54.2]} 11... Re8 {[%clk 0:02:26.9]} 12. Bf4 {[%clk 0:02:49.4]} 12...
Nf8 {[%clk 0:02:19.3]} 13. Qd2 {[%clk 0:02:47.5]} 13... Ne6 {[%clk 0:02:15.7]}
14. Be5 {[%clk 0:02:42.9]} 14... a6 {[%clk 0:02:06.2]} 15. f4 {[%clk 0:02:40.8]}
15... Nc7 {[%clk 0:01:58.4]} 16. Ng3 {[%clk 0:02:38]} 16... Nb5 {[%clk
0:01:30.8]} 17. Rae1 {[%clk 0:02:30.7]} 17... Nxc3 {[%clk 0:01:24.4]} 18. bxc3
{[%clk 0:02:30.9]} 18... Bd7 {[%clk 0:01:22.8]} 19. Bxd6 {[%clk 0:02:27.7]} 1-0